bitfinex-derivatives/quotes_BNBF0:USTF0_20250617
["timestamp","ask_amount","ask_price","bid_price","bid_amount"]
[1750189504809,1.00407566,649.42,648.75,1.043]
[1750189505008,1.00407566,649.41,648.75,1.043]
[1750189505308,1.00407566,649.4,648.75,1.043]
[1750189505617,1.00407566,649.39,648.76,1.264]
[1750189505914,1.15418059,649.47,648.76,1.264]
[1750189505915,1.00407566,649.38,648.76,1.264]
[1750189506115,1.15418059,649.47,648.76,1.264]
[1750189506116,1.00407566,649.37,648.76,1.264]
[1750189506312,1.00407566,649.36,648.76,1.264]
[1750189506515,1.00407566,649.35,648.76,1.264]
[1750189506715,1.00407566,649.34,648.76,1.264]
[1750189506916,1.00407566,649.33,648.76,1.264]
[1750189507218,1.00407566,649.32,648.76,1.264]
[1750189507417,1.00407566,649.31,648.76,1.264]
[1750189507617,1.00407566,649.3,648.76,1.264]
[1750189507817,1.00407566,649.29,648.76,1.264]
[1750189508018,1.00407566,649.28,648.76,1.264]
[1750189508221,1.00407566,649.27,648.76,1.264]
[1750189508421,1.00407566,649.26,648.76,1.264]
[1750189508617,1.00407566,649.25,648.76,1.264]
[1750189508817,1.00407566,649.24,648.76,1.264]
[1750189509120,1.00407566,649.23,648.76,1.264]
[1750189509317,1.00407566,649.22,648.76,1.264]
[1750189509617,1.00407566,649.21,648.76,1.264]
[1750189509821,1.00407566,649.2,648.76,1.264]
[1750189510022,1.00407566,649.19,648.76,1.264]
[1750189510224,1.00407566,649.18,648.76,1.264]
[1750189510422,1.00407566,649.17,648.76,1.264]
[1750189510622,1.00407566,649.16,648.76,1.264]
[1750189510823,1.00407566,649.15,648.76,1.264]
[1750189511022,1.00407566,649.14,648.76,1.264]
[1750189511222,1.00425331,649.13,648.76,1.264]
[1750189511520,1.00425331,649.12,648.76,1.264]
[1750189511725,1.00425331,649.11,648.76,1.264]
[1750189512026,1.00425331,649.1,648.76,1.264]
[1750189512223,1.00425331,649.09,648.76,1.264]
[1750189512426,1.00425331,649.08,648.76,1.264]
[1750189512624,1.00425331,649.07,648.76,1.264]
[1750189512827,1.15418059,649.28,648.76,1.264]
[1750189513026,1.00452062,649.27,648.76,1.264]
[1750189513223,1.00452062,649.26,648.76,1.264]
[1750189513528,1.00452062,649.25,648.76,1.264]
[1750189513924,1.53899519,649.4,648.76,1.264]
[1750189514224,0.26808619,649.48,648.76,1.264]
[1750189514926,2.03613869,649.48,648.76,1.264]
[1750189515128,1.29455308,649.47,648.76,1.264]
[1750189515325,0.26808619,649.48,648.76,1.264]
[1750189523031,0.26808619,649.48,648.77,1.438]
[1750189529137,1.15162265,649.26,648.77,1.438]
[1750189529337,1.00902321,649.25,648.77,1.438]
[1750189529633,1.00902321,649.24,648.77,1.438]
[1750189529833,1.00902321,649.23,648.77,1.438]
[1750189530032,1.00902321,649.22,648.77,1.438]
[1750189530231,1.00902321,649.21,648.77,1.438]
[1750189530435,1.00902321,649.2,648.77,1.438]
[1750189530636,1.15162265,649.32,648.77,1.438]
[1750189530637,1.00902321,649.19,648.77,1.438]
[1750189530835,1.00902321,649.18,648.77,1.438]
[1750189531033,1.00902321,649.17,648.77,1.438]
[1750189531233,1.00902321,649.16,648.77,1.438]
[1750189531436,1.15162265,649.32,648.77,1.438]
[1750189531437,1.00902321,649.15,648.77,1.438]
[1750189531637,1.00902321,649.14,648.77,1.438]
[1750189531932,1.00902321,649.13,648.77,1.438]
[1750189532137,1.15162265,649.32,648.77,1.438]
[1750189532337,1.00977582,649.31,648.77,1.438]
[1750189532537,1.00977582,649.3,648.77,1.438]
[1750189532734,1.00977582,649.29,648.77,1.438]
[1750189532935,1.15162265,649.32,648.77,1.438]
[1750189532936,1.00977582,649.28,648.77,1.438]
[1750189533139,1.00977582,649.27,648.77,1.438]
[1750189533437,1.00977582,649.26,648.77,1.438]
[1750189533633,1.00977582,649.25,648.77,1.438]
[1750189533833,1.00977582,649.24,648.77,1.438]
[1750189534135,1.00977582,649.23,648.77,1.438]
[1750189534334,1.00977582,649.22,648.77,1.438]
[1750189534536,1.00977582,649.21,648.77,1.438]
[1750189534836,1.00977582,649.2,648.77,1.438]
[1750189535038,1.00977582,649.19,648.77,1.438]
[1750189535233,1.00977582,649.18,648.77,1.438]
[1750189535436,1.00977582,649.17,648.78,1.597]
[1750189535634,1.00964066,649.16,648.78,1.597]
[1750189535835,1.15162265,649.35,648.78,1.597]
[1750189536038,1.00964711,649.34,648.78,1.597]
[1750189536236,1.00964711,649.33,648.78,1.597]
[1750189536439,1.00964711,649.32,648.78,1.597]
[1750189536638,1.00964711,649.31,648.78,1.597]
[1750189536841,1.00964711,649.3,648.78,1.597]
[1750189537038,1.00964711,649.29,648.78,1.597]
[1750189537238,1.00964711,649.28,648.79,1.083]
[1750189537442,1.00964711,649.27,648.79,1.083]
[1750189537639,1.15162265,649.34,648.79,1.083]
[1750189537640,1.00964711,649.26,648.79,1.083]
[1750189537843,1.00964711,649.25,648.79,1.083]
[1750189538042,1.00964711,649.24,648.79,1.083]
[1750189538244,1.00964711,649.23,648.79,1.083]
[1750189538542,1.00964711,649.22,648.79,1.083]
[1750189538741,1.00964711,649.21,648.79,1.083]
[1750189538940,1.00964711,649.2,648.79,1.083]
[1750189539144,1.00964711,649.19,648.79,1.083]
[1750189539341,1.00964711,649.18,648.79,1.083]
[1750189539539,1.00964711,649.17,648.79,1.083]
[1750189539744,1.00964711,649.16,648.79,1.083]
[1750189539941,1.00964711,649.15,648.79,1.083]
[1750189540144,1.15162265,649.33,648.79,1.083]
[1750189540344,1.00961691,649.32,648.79,1.083]
[1750189540542,1.00961691,649.31,648.79,1.083]
[1750189540842,1.00961691,649.3,648.79,1.083]
[1750189541042,1.00961691,649.29,648.79,1.083]
[1750189541242,1.00961691,649.28,648.79,1.083]
[1750189541443,1.00961691,649.27,648.79,1.083]
[1750189541646,1.00961691,649.26,648.79,1.083]
[1750189541846,1.00961691,649.25,648.79,1.083]
[1750189542146,1.00961691,649.24,648.79,1.083]
[1750189542446,1.00961691,649.23,648.79,1.083]
[1750189542646,1.00961691,649.22,648.79,1.083]
[1750189542945,1.00961691,649.21,648.79,1.083]
[1750189543245,1.00961691,649.2,648.79,1.083]
[1750189543446,1.00961691,649.19,648.79,1.083]
[1750189543742,1.00961691,649.18,648.79,1.083]
[1750189543945,1.00961691,649.17,648.79,1.083]
[1750189544143,1.00961691,649.16,648.79,1.083]
[1750189544348,1.00961691,649.15,648.79,1.083]
[1750189544646,1.00961691,649.14,648.79,1.083]
[1750189544846,1.00961691,649.13,648.79,1.083]
[1750189545041,1.0096354,649.12,648.79,1.083]
[1750189545241,1.15162265,649.38,648.79,1.083]
[1750189545445,1.0096437,649.37,648.79,1.083]
[1750189545645,1.15162265,649.38,648.79,1.083]
[1750189545646,1.0096437,649.36,648.79,1.083]
[1750189545847,1.0096437,649.35,648.79,1.083]
[1750189546050,1.15162265,649.38,648.79,1.083]
[1750189546051,1.0096437,649.34,648.79,1.083]
[1750189546247,1.0096437,649.33,648.79,1.083]
[1750189546442,1.0096437,649.32,648.79,1.083]
[1750189546642,1.0096437,649.31,648.79,1.083]
[1750189546846,1.0096437,649.3,648.79,1.083]
[1750189547142,1.0096437,649.29,648.79,1.083]
[1750189547348,1.0096437,649.28,648.79,1.083]
[1750189547544,1.0096437,649.27,648.79,1.083]
[1750189547746,1.0096437,649.26,648.79,1.083]
[1750189547944,1.0096437,649.25,648.79,1.083]
[1750189548144,1.0096437,649.24,648.79,1.083]
[1750189548348,1.0096437,649.23,648.79,1.083]
[1750189548544,1.0096437,649.22,648.79,1.083]
[1750189548745,1.0096437,649.21,648.8,1.438]
[1750189548944,1.0096437,649.2,648.8,1.438]
[1750189549149,1.0096437,649.19,648.8,1.438]
[1750189549450,1.0096437,649.18,648.8,1.438]
[1750189549650,1.0096437,649.17,648.8,1.438]
[1750189549851,1.0096437,649.16,648.8,1.438]
[1750189550151,1.0096437,649.15,648.8,1.438]
[1750189550351,1.0096437,649.14,648.8,1.438]
[1750189550550,1.0096437,649.13,648.8,1.438]
[1750189550847,1.0096437,649.12,648.8,1.438]
[1750189551152,1.0096437,649.11,648.8,1.438]
[1750189551346,1.0096437,649.1,648.8,1.438]
[1750189551650,1.0096437,649.09,648.8,1.438]
[1750189551851,1.0096437,649.08,648.8,1.438]
[1750189552052,1.0096437,649.07,648.8,1.438]
[1750189552248,1.0096437,649.06,648.8,1.438]
[1750189552552,1.0096437,649.05,648.8,1.438]
[1750189552752,1.0096437,649.04,648.8,1.438]
[1750189553048,1.15162265,649.34,648.8,1.438]
[1750189553353,1.00992248,649.33,648.8,1.438]
[1750189553553,1.00992248,649.32,648.8,1.438]
[1750189553848,1.00992248,649.31,648.8,1.438]
[1750189554049,1.00992248,649.3,648.8,1.438]
[1750189554252,1.00992248,649.29,648.8,1.438]
[1750189554447,1.00992248,649.28,648.8,1.438]
[1750189554749,1.00992248,649.27,648.8,1.438]
[1750189554952,1.00992248,649.26,648.8,1.438]
[1750189555152,1.00992248,649.25,648.8,1.438]
[1750189555351,1.00992248,649.24,648.8,1.438]
[1750189555553,1.00992248,649.23,648.8,1.438]
[1750189555753,1.00992248,649.22,648.8,1.438]
[1750189555949,1.15162265,649.3,648.8,1.438]
[1750189555950,1.00992248,649.21,648.8,1.438]
[1750189556252,1.00992248,649.2,648.8,1.438]
[1750189556450,1.00992248,649.19,648.8,1.438]
[1750189556649,1.00992248,649.18,648.8,1.438]
[1750189556851,1.00992248,649.17,648.8,1.438]
[1750189557054,1.00992248,649.16,648.8,1.438]
[1750189557249,1.00992248,649.15,648.8,1.438]
[1750189557453,1.00992248,649.14,648.8,1.438]
[1750189557748,1.00992248,649.13,648.8,1.438]
[1750189557953,1.00992248,649.12,648.8,1.438]
[1750189558155,1.00992248,649.11,648.8,1.438]
[1750189558353,1.00992248,649.1,648.8,1.438]
[1750189558549,1.00992248,649.09,648.8,1.438]
[1750189558854,1.00992248,649.08,648.8,1.438]
[1750189559154,1.00992248,649.07,648.8,1.438]
[1750189559352,1.00992248,649.06,648.8,1.438]
[1750189559552,1.00992248,649.05,648.8,1.438]
[1750189559752,1.15162265,649.29,648.8,1.438]
[1750189559952,1.00910211,649.28,648.8,1.438]
[1750189560153,1.00910211,649.27,648.8,1.438]
[1750189560452,1.00910211,649.26,648.8,1.438]
[1750189560754,1.00910211,649.25,648.8,1.438]
[1750189560955,1.00910211,649.24,648.8,1.438]
[1750189561251,1.00910211,649.23,648.8,1.438]
[1750189561455,1.00910211,649.22,648.8,1.438]
[1750189561751,1.00910211,649.21,648.8,1.438]
[1750189561955,1.00910211,649.2,648.8,1.438]
[1750189562155,1.00910211,649.19,648.8,1.438]
[1750189562356,1.00910211,649.18,648.8,1.438]
[1750189562654,1.00910211,649.17,648.8,1.438]
[1750189562851,3.83874217,650.09,648.8,1.438]
[1750189562852,1.00910211,649.16,648.8,1.438]
[1750189563155,1.00910211,649.15,648.8,1.438]
[1750189563355,1.00910211,649.14,648.8,1.438]
[1750189563656,1.00910211,649.13,648.8,1.438]
[1750189563955,1.00910211,649.12,648.8,1.438]
[1750189564152,1.00910211,649.11,648.8,1.438]
[1750189564352,1.00910211,649.1,648.8,1.438]
[1750189564554,1.00910211,649.09,648.8,1.438]
[1750189564857,1.00910211,649.08,648.8,1.438]
[1750189565056,1.00910211,649.07,648.8,1.438]
[1750189565257,1.15162265,649.26,648.8,1.438]
[1750189565451,1.00913459,649.25,648.8,1.438]
[1750189565656,1.00913459,649.24,648.8,1.438]
[1750189565856,1.00913459,649.23,648.8,1.438]
[1750189566155,1.00913459,649.22,648.8,1.438]
[1750189566354,1.00913459,649.21,648.8,1.438]
[1750189566555,1.00913459,649.2,648.8,1.438]
[1750189566755,1.00913459,649.19,648.8,1.438]
[1750189566952,1.00913459,649.18,648.8,1.438]
[1750189567156,1.00913459,649.17,648.8,1.438]
[1750189567352,1.00913459,649.16,648.8,1.438]
[1750189567556,1.00913459,649.15,648.8,1.438]
[1750189567756,1.00913459,649.14,648.8,1.438]
[1750189567955,1.15162265,649.26,648.8,1.438]
[1750189567956,1.00913459,649.13,648.8,1.438]
[1750189568259,1.00913459,649.12,648.8,1.438]
[1750189568552,1.00913459,649.11,648.8,1.438]
[1750189568756,1.00913459,649.1,648.79,1.083]
[1750189569057,1.00913459,649.09,648.79,1.083]
[1750189569352,1.00913459,649.08,648.79,1.083]
[1750189569553,1.00913459,649.07,648.79,1.083]
[1750189569751,1.00913459,649.06,648.79,1.083]
[1750189569955,1.00913459,649.05,648.79,1.083]
[1750189570258,1.15162265,649.3,648.79,1.083]
[1750189570453,1.00912092,649.29,648.79,1.083]
[1750189570756,1.00912092,649.28,648.79,1.083]
[1750189570955,1.00912092,649.27,648.79,1.083]
[1750189571155,1.00912092,649.26,648.79,1.083]
[1750189571455,1.00912092,649.25,648.79,1.083]
[1750189571658,1.00912092,649.24,648.79,1.083]
[1750189571954,1.00912092,649.23,648.79,1.083]
[1750189572159,1.00912092,649.22,648.79,1.083]
[1750189572358,1.00912092,649.21,648.8,1.438]
[1750189572558,1.00912092,649.2,648.8,1.438]
[1750189572757,1.00912092,649.19,648.8,1.438]
[1750189572958,1.00912092,649.18,648.8,1.438]
[1750189573259,1.00912092,649.17,648.8,1.438]
[1750189573454,1.00912092,649.16,648.8,1.438]
[1750189573653,1.00912092,649.15,648.8,1.438]
[1750189573856,1.00912092,649.14,648.8,1.438]
[1750189574157,1.00912092,649.13,648.8,1.438]
[1750189574356,1.00912092,649.12,648.8,1.438]
[1750189574555,1.00912092,649.11,648.8,1.438]
[1750189574756,1.00912092,649.1,648.8,1.438]
[1750189574955,1.00912092,649.09,648.8,1.438]
[1750189575159,1.00912092,649.08,648.8,1.438]
[1750189575461,1.00912092,649.07,648.8,1.438]
[1750189575654,1.00912092,649.06,648.8,1.438]
[1750189575860,1.00912092,649.05,648.8,1.438]
[1750189576060,1.00912092,649.04,648.8,1.438]
[1750189576263,1.15162265,649.29,648.81,1.253]
[1750189576458,1.00938503,649.28,648.81,1.253]
[1750189576663,1.00938503,649.27,648.81,1.253]
[1750189576860,1.00938503,649.26,648.81,1.253]
[1750189577060,1.00938503,649.25,648.81,1.253]
[1750189577258,1.00938503,649.24,648.81,1.253]
[1750189577458,1.00938503,649.23,648.81,1.253]
[1750189577661,1.00938503,649.22,648.81,1.253]
[1750189577862,1.00938503,649.21,648.81,1.253]
[1750189578060,1.00938503,649.2,648.81,1.253]
[1750189578260,1.00938503,649.19,648.81,1.253]
[1750189578560,1.00938503,649.18,648.81,1.253]
[1750189578760,1.00953179,649.17,648.81,1.253]
[1750189578961,1.00953179,649.16,648.81,1.253]
[1750189579164,1.00953179,649.15,648.81,1.253]
[1750189579364,1.00953179,649.14,648.81,1.253]
[1750189579663,1.00953179,649.13,648.81,1.253]
[1750189579867,1.00953179,649.12,648.81,1.253]
[1750189580063,1.00953179,649.11,648.81,1.253]
[1750189580268,1.00953179,649.1,648.81,1.253]
[1750189580466,1.00953179,649.09,648.81,1.253]
[1750189580767,1.00953179,649.08,648.81,1.253]
[1750189580966,1.15339994,649.25,648.81,1.253]
[1750189580967,1.00953179,649.07,648.81,1.253]
[1750189581168,1.00953179,649.06,648.81,1.253]
[1750189581364,1.15339994,649.25,648.81,1.253]
[1750189581567,1.00952627,649.24,648.81,1.253]
[1750189581766,1.00952627,649.23,648.81,1.253]
[1750189582066,1.00952627,649.22,648.81,1.253]
[1750189582266,1.00952627,649.21,648.81,1.253]
[1750189582470,1.00952627,649.2,648.81,1.253]
[1750189582670,1.00952627,649.19,648.81,1.253]
[1750189582971,1.00952627,649.18,648.81,1.253]
[1750189583167,1.00952627,649.17,648.81,1.253]
[1750189583369,1.00952627,649.16,648.81,1.253]
[1750189583566,1.00952627,649.15,648.81,1.253]
[1750189583770,1.00952627,649.14,648.81,1.253]
[1750189583968,1.00952627,649.13,648.81,1.253]
[1750189584171,1.00952627,649.12,648.81,1.253]
[1750189584369,1.00952627,649.11,648.81,1.253]
[1750189584572,1.00952627,649.1,648.81,1.253]
[1750189584767,1.00952627,649.09,648.81,1.253]
[1750189584971,1.00952627,649.08,648.81,1.253]
[1750189585270,1.00952627,649.07,648.81,1.253]
[1750189585473,1.00952627,649.06,648.81,1.253]
[1750189585773,1.15339994,649.25,648.81,1.253]
[1750189585970,1.00955685,649.24,648.81,1.253]
[1750189586269,1.00955685,649.23,648.81,1.253]
[1750189586472,1.00955685,649.22,648.81,1.253]
[1750189586670,1.00955685,649.21,648.81,1.253]
[1750189586869,1.00955685,649.2,648.81,1.253]
[1750189587073,1.00955685,649.19,648.81,1.253]
[1750189587372,1.00955685,649.18,648.81,1.253]
[1750189587575,1.00955685,649.17,648.81,1.253]
[1750189587775,1.53549686,649.36,648.81,1.253]
[1750189587974,1.15343638,649.25,648.81,1.253]
[1750189588171,1.00956376,649.24,648.81,1.253]
[1750189588471,1.00956376,649.23,648.81,1.253]
[1750189588672,1.00956376,649.22,648.81,1.253]
[1750189588874,1.00956376,649.21,648.81,1.253]
[1750189589075,1.00956376,649.2,648.81,1.253]
[1750189589375,1.00956376,649.19,648.81,1.253]
[1750189589576,1.00956376,649.18,648.81,1.253]
[1750189589774,1.00956376,649.17,648.81,1.253]
[1750189589975,1.00956376,649.16,648.82,1.497]
[1750189590175,1.00956376,649.15,648.82,1.497]
[1750189590373,1.00956376,649.14,648.82,1.497]
[1750189590576,1.00956376,649.13,648.82,1.497]
[1750189590773,1.00956376,649.12,648.82,1.497]
[1750189590977,1.00956376,649.11,648.82,1.497]
[1750189591174,1.00956376,649.1,648.82,1.497]
[1750189591377,1.00956376,649.09,648.82,1.497]
[1750189591578,1.00956376,649.08,648.82,1.497]
[1750189591774,1.00956376,649.07,648.82,1.497]
[1750189591973,1.00956376,649.06,648.82,1.497]
[1750189592176,1.15343638,649.25,648.82,1.497]
[1750189592475,1.00964664,649.24,648.82,1.497]
[1750189592678,1.00964664,649.23,648.82,1.497]
[1750189592874,1.00964664,649.22,648.82,1.497]
[1750189593078,1.00964664,649.21,648.82,1.497]
[1750189593276,1.00964664,649.2,648.82,1.497]
[1750189593480,1.00964664,649.19,648.82,1.497]
[1750189593677,1.00964664,649.18,648.82,1.497]
[1750189593881,1.00964664,649.17,648.82,1.497]
[1750189594078,1.00964664,649.16,648.82,1.497]
[1750189594286,1.00964664,649.15,648.82,1.497]
[1750189594475,1.00964664,649.14,648.82,1.497]
[1750189594679,1.00964664,649.13,648.82,1.497]
[1750189594879,1.00964664,649.12,648.82,1.497]
[1750189595081,1.00964664,649.11,648.82,1.497]
[1750189595281,1.00964664,649.1,648.82,1.497]
[1750189595581,1.00964664,649.09,648.82,1.497]
[1750189595782,1.00964664,649.08,648.82,1.497]
[1750189596082,1.00964664,649.07,648.82,1.497]
[1750189596282,1.00964664,649.06,648.82,1.497]
[1750189596482,1.00964664,649.05,648.82,1.497]
[1750189596681,1.15343638,649.24,648.82,1.497]
[1750189596879,1.00979227,649.23,648.82,1.497]
[1750189597181,1.00979227,649.22,648.82,1.497]
[1750189597379,1.00979227,649.21,648.82,1.497]
[1750189597579,1.00979227,649.2,648.82,1.497]
[1750189597780,1.00979227,649.19,648.83,1.307]
[1750189597979,1.00979227,649.18,648.83,1.307]
[1750189598283,1.00979227,649.17,648.83,1.307]
[1750189598483,1.00979227,649.16,648.83,1.307]
[1750189598686,1.00979227,649.15,648.83,1.307]
[1750189598881,1.00979227,649.14,648.83,1.307]
[1750189599081,1.00979227,649.13,648.83,1.307]
[1750189599284,1.00979227,649.12,648.83,1.307]
[1750189599484,1.00979227,649.11,648.83,1.307]
[1750189599785,1.00979227,649.1,648.83,1.307]
[1750189599984,1.00979227,649.09,648.83,1.307]
[1750189600185,1.00979227,649.08,648.83,1.307]
[1750189600385,1.00979227,649.07,648.83,1.307]
[1750189600586,1.00979227,649.06,648.83,1.307]
[1750189600783,1.00979227,649.05,648.83,1.307]
[1750189600983,1.00979227,649.04,648.83,1.307]
[1750189601187,1.15343638,649.23,648.83,1.307]
[1750189601386,1.00994365,649.22,648.83,1.307]
[1750189601583,1.00994365,649.21,648.83,1.307]
[1750189601886,1.00994365,649.2,648.83,1.307]
[1750189602086,1.00994365,649.19,648.83,1.307]
[1750189602281,1.00994365,649.18,648.83,1.307]
[1750189602483,1.00994365,649.17,648.83,1.307]
[1750189602687,1.00994365,649.16,648.83,1.307]
[1750189602887,1.00994365,649.15,648.83,1.307]
[1750189603088,1.00994365,649.14,648.83,1.307]
[1750189603285,1.00994365,649.13,648.83,1.307]
[1750189603488,1.00994365,649.12,648.84,1.369]
[1750189603688,1.00994365,649.11,648.84,1.369]
[1750189603985,1.00994365,649.1,648.84,1.369]
[1750189604185,1.00994365,649.09,648.84,1.369]
[1750189604386,1.00994365,649.08,648.84,1.369]
[1750189604587,1.00994365,649.07,648.84,1.369]
[1750189604788,1.00994365,649.06,648.84,1.369]
[1750189604991,1.00994365,649.05,648.84,1.369]
[1750189605187,1.15343638,649.23,648.84,1.369]
[1750189605388,1.01014275,649.22,648.84,1.369]
[1750189605590,1.01014275,649.21,648.84,1.369]
[1750189605792,1.01014275,649.2,648.84,1.369]
[1750189605992,1.01014275,649.19,648.84,1.369]
[1750189606193,1.01014275,649.18,648.84,1.369]
[1750189606488,1.01014275,649.17,648.84,1.369]
[1750189606690,1.01014275,649.16,648.84,1.369]
[1750189606895,1.01014275,649.15,648.84,1.369]
[1750189607095,1.01014275,649.14,648.84,1.369]
[1750189607296,1.01014275,649.13,648.84,1.369]
[1750189607496,1.01014275,649.12,648.84,1.369]
[1750189607690,1.01014275,649.11,648.84,1.369]
[1750189607996,1.01014275,649.1,648.84,1.369]
[1750189608295,1.01014275,649.09,648.84,1.369]
[1750189608493,1.53549686,649.33,648.84,1.369]
[1750189608494,1.01014275,649.08,648.84,1.369]
[1750189608692,1.01014275,649.07,648.84,1.369]
[1750189608893,1.15343638,649.34,648.84,1.369]
[1750189609194,1.01037792,649.33,648.84,1.369]
[1750189609397,1.01037792,649.32,648.84,1.369]
[1750189609598,1.01037792,649.31,648.84,1.369]
[1750189609797,1.01037792,649.3,648.84,1.369]
[1750189609994,1.01037792,649.29,648.84,1.369]
[1750189610197,1.01037792,649.28,648.84,1.369]
[1750189610394,1.01037792,649.27,648.84,1.369]
[1750189610599,1.01037792,649.26,648.84,1.369]
[1750189610797,1.01037792,649.25,648.84,1.369]
[1750189610999,1.01037792,649.24,648.84,1.369]
[1750189611196,1.01037792,649.23,648.84,1.369]
[1750189611396,1.01037792,649.22,648.84,1.369]
[1750189611600,1.01037792,649.21,648.84,1.369]
[1750189611800,1.01037792,649.2,648.84,1.369]
[1750189611996,1.01037792,649.19,648.84,1.369]
[1750189612200,1.01037792,649.18,648.84,1.369]
[1750189612397,1.01037792,649.17,648.84,1.369]
[1750189612696,1.01037792,649.16,648.84,1.369]
[1750189612899,1.15343638,649.42,648.84,1.369]
[1750189612900,1.01037792,649.15,648.84,1.369]
[1750189613097,1.15343638,649.41,648.84,1.369]
[1750189613299,1.00940873,649.4,648.84,1.369]
[1750189613498,1.00940873,649.39,648.84,1.369]
[1750189613697,1.00940873,649.38,648.84,1.369]
[1750189614001,1.00940873,649.37,648.84,1.369]
[1750189614198,1.00940873,649.36,648.84,1.369]
[1750189614497,1.00940873,649.35,648.84,1.369]
[1750189614701,1.00940873,649.34,648.84,1.369]
[1750189614901,1.00940873,649.33,648.84,1.369]
[1750189615102,1.00940873,649.32,648.84,1.369]
[1750189615299,1.00940873,649.31,648.84,1.369]
[1750189615504,1.00940873,649.3,648.84,1.369]
[1750189615698,1.00940873,649.29,648.84,1.369]
[1750189615899,1.00940873,649.28,648.84,1.369]
[1750189616098,1.00940873,649.27,648.84,1.369]
[1750189616303,1.00940873,649.26,648.84,1.369]
[1750189616503,1.53549686,649.57,648.84,1.369]
[1750189616504,1.00940873,649.25,648.84,1.369]
[1750189616700,1.00940873,649.24,648.84,1.369]
[1750189616900,1.00940873,649.23,648.84,1.369]
[1750189617101,1.00940873,649.22,648.84,1.369]
[1750189617302,1.00940873,649.21,648.84,1.369]
[1750189617500,1.00940873,649.2,648.84,1.369]
[1750189617703,1.00940873,649.19,648.84,1.369]
[1750189617898,1.00940873,649.18,648.84,1.369]
[1750189618102,1.00940873,649.17,648.84,1.369]
[1750189618403,1.15343638,649.44,648.84,1.369]
[1750189618703,1.00870079,649.43,648.84,1.369]
[1750189618905,1.00870079,649.42,648.84,1.369]
[1750189619104,1.00870079,649.41,648.84,1.369]
[1750189619302,1.00870079,649.4,648.84,1.369]
[1750189619502,1.00870079,649.39,648.84,1.369]
[1750189619702,1.00870079,649.38,648.84,1.369]
[1750189619905,1.00870079,649.37,648.84,1.369]
[1750189620108,1.00870079,649.36,648.84,1.369]
[1750189620306,1.00870079,649.35,648.84,1.369]
[1750189620609,1.00870079,649.34,648.84,1.369]
[1750189620909,1.00870079,649.33,648.84,1.369]
[1750189621104,1.00870079,649.32,648.84,1.369]
[1750189621309,1.00870079,649.31,648.84,1.369]
[1750189621606,1.00870079,649.3,648.84,1.369]
[1750189621810,1.00870079,649.29,648.84,1.369]
[1750189622006,1.00870079,649.28,648.84,1.369]
[1750189622209,1.00870079,649.27,648.84,1.369]
[1750189622405,1.00870079,649.26,648.84,1.369]
[1750189622610,1.00870079,649.25,648.84,1.369]
[1750189622810,1.15343638,649.44,648.84,1.369]
[1750189622811,1.00870079,649.24,648.84,1.369]
[1750189623011,1.00870079,649.23,648.84,1.369]
[1750189623210,1.00870079,649.22,648.84,1.369]
[1750189623412,1.00870079,649.21,648.84,1.369]
[1750189623607,1.00870079,649.2,648.84,1.369]
[1750189623813,1.80353556,649.58,648.84,1.369]
[1750189623814,1.00870079,649.19,648.84,1.369]
[1750189624109,1.00870079,649.18,648.84,1.369]
[1750189624313,1.00870079,649.17,648.84,1.369]
[1750189624515,1.00870079,649.16,648.84,1.369]